Workbook

Sheet ورقة1
A1: اليوم الأول | G1: 1 | H1: محرم | I1: 1437
A2: م | B2: اسم العميل | C2: الفرع | D2: العنوان | E2: مبلغ1 | F2: مبلغ2 | G2: مبلغ3 | H2: مبلغ4 | I2: مبلغ5 | J2: مبلغ6 | K2: مبلغ7 | L2: اجمالي المبالغ
A3: 1 | B3: عميل1 | E3: 15 | L3: =SUM(E3:K3) -> 15
A4: 2 | B4: عميل 2 | L4: =SUM(E4:K4) -> 0
A5: 3 | B5: عميل3 | E5: 20 | H5: 60 | L5: 80
A6: 4 | B6: عميل4 | L6: 0
A7: 5 | B7: عميل5 | E7: 30 | I7: 33 | K7: 500 | L7: 563
A8: 6 | B8: عميل6 | L8: 0
A9: 7 | B9: عميل7 | E9: 40 | F9: 10 | G9: 50 | L9: 100
A10: 8 | B10: عميل8 | J10: 400 | L10: 400
A11: 9 | B11: عميل9 | L11: 0
A12: 10 | B12: عميل10 | F12: 99 | L12: 99
A13: 11 | B13: عميل11 | G13: 88 | H13: 77 | L13: 165
A14: 12 | B14: عميل12 | L14: 0
A15: 13 | B15: عميل13 | H15: 70 | L15: 70
A16: 14 | B16: عميل14 | L16: 0
A17: 15 | B17: عميل15 | L17: 0
A18: 16 | B18: عميل16 | E18: 90 | H18: 125 | L18: 215
A19: 17 | B19: عميل17 | H19: 111 | L19: 111
A20: 18 | B20: عميل18 | L20: 0
A21: 19 | B21: عميل19 | L21: 0
A22: 20 | B22: عميل20 | L22: 0
A23: 21 | B23: عميل21 | L23: 0
A24: 22 | B24: عميل22 | L24: 0
A25: الإجمالي النقدي | E25: =SUM(E3:E24) -> 195 | F25: =SUM(F3:F24) -> 109 | G25: 138 | H25: 443 | I25: 33 | J25: 400 | K25: 500 | L25: =SUM(L3:L24) -> 1818
A26: الشيكات | L26: =SUM(E26:K26) -> 0
A28: اليوم الثاني | G28: 2 | H28: محرم | I28: 1437
A29: م | B29: اسم العميل | C29: الفرع | D29: العنوان | E29: مبلغ1 | F29: مبلغ2 | G29: مبلغ3 | H29: مبلغ4 | I29: مبلغ5 | J29: مبلغ6 | K29: مبلغ7 | L29: اجمالي المبالغ
A30: 1 | B30: عميل1 | E30: 15 | L30: =SUM(E30:K30) -> 15
A31: 2 | B31: عميل 2 | L31: =SUM(E31:K31) -> 0
A32: 3 | B32: عميل3 | E32: 20 | H32: 60 | L32: 80
A33: 4 | B33: عميل4 | L33: 0
A34: 5 | B34: عميل5 | E34: 30 | I34: 33 | K34: 500 | L34: 563
A35: 6 | B35: عميل6 | L35: 0
A36: 7 | B36: عميل7 | E36: 40 | F36: 10 | G36: 50 | L36: 100
A37: 8 | B37: عميل8 | J37: 400 | L37: 400
A38: 9 | B38: عميل9 | L38: 0
A39: 10 | B39: عميل10 | F39: 99 | L39: 99
A40: 11 | B40: عميل11 | G40: 88 | H40: 77 | L40: 165
A41: 12 | B41: عميل12 | L41: 0
A42: 13 | B42: عميل13 | H42: 70 | L42: 70
A43: 14 | B43: عميل14 | L43: 0
A44: 15 | B44: عميل15 | L44: 0
A45: 16 | B45: عميل16 | E45: 90 | H45: 125 | L45: 215
A46: 17 | B46: عميل17 | H46: 111 | L46: 111
A47: 18 | B47: عميل18 | L47: 0
A48: 19 | B48: عميل19 | L48: 0
A49: 20 | B49: عميل20 | L49: 0
A50: 21 | B50: عميل21 | L50: 0
A51: 22 | B51: عميل22 | L51: 0
A52: الإجمالي النقدي | E52: =SUM(E30:E51) -> 195 | F52: =SUM(F30:F51) -> 109 | G52: =SUM(G30:G51) -> 138 | H52: =SUM(H30:H51) -> 443 | I52: =SUM(I30:I51) -> 33 | J52: =SUM(J30:J51) -> 400 | K52: =SUM(K30:K51) -> 500 | L52: =SUM(L30:L51) -> 1818
A53: الشيكات | H53: 500 | L53: =SUM(E53:K53) -> 500
A55: اليوم الثالث | F55: السبت | G55: 3 | H55: محرم | I55: 1437
A56: م | B56: اسم العميل | C56: الفرع | D56: العنوان | E56: مبلغ1 | F56: مبلغ2 | G56: مبلغ3 | H56: مبلغ4 | I56: مبلغ5 | J56: مبلغ6 | K56: مبلغ7 | L56: اجمالي المبالغ
A57: 1 | B57: عميل1 | E57: 15 | L57: =SUM(E57:K57) -> 15
A58: 2 | B58: عميل 2 | L58: =SUM(E58:K58) -> 0
A59: 3 | B59: عميل3 | E59: 20 | H59: 60 | L59: 80
A60: 4 | B60: عميل4 | L60: 0
A61: 5 | B61: عميل5 | E61: 30 | I61: 33 | K61: 500 | L61: 563
A62: 6 | B62: عميل6 | L62: 0
A63: 7 | B63: عميل7 | E63: 40 | F63: 10 | G63: 50 | L63: 100
A64: 8 | B64: عميل8 | J64: 400 | L64: 400
A65: 9 | B65: عميل9 | L65: 0
A66: 10 | B66: عميل10 | F66: 99 | L66: 99
A67: 11 | B67: عميل11 | G67: 88 | H67: 77 | L67: 165
A68: 12 | B68: عميل12 | L68: 0
A69: 13 | B69: عميل13 | H69: 70 | L69: 70
A70: 14 | B70: عميل14 | L70: 0
A71: 15 | B71: عميل15 | L71: 0
A72: 16 | B72: عميل16 | E72: 90 | H72: 125 | L72: 215
A73: 17 | B73: عميل17 | H73: 111 | L73: 111
A74: 18 | B74: عميل18 | L74: 0
A75: 19 | B75: عميل19 | L75: 0
A76: 20 | B76: عميل20 | L76: 0
A77: 21 | B77: عميل21 | L77: 0
A78: 22 | B78: عميل22 | L78: 0
A79: الإجمالي النقدي | E79: =SUM(E57:E78) -> 195 | F79: =SUM(F57:F78) -> 109 | G79: =SUM(G57:G78) -> 138 | H79: =SUM(H57:H78) -> 443 | I79: =SUM(I57:I78) -> 33 | J79: =SUM(J57:J78) -> 400 | K79: =SUM(K57:K78) -> 500 | L79: =SUM(L57:L78) -> 1818
A80: الشيكات | H80: 100 | L80: =SUM(E80:K80) -> 100
A82: اليوم الرابع | F82: السبت | G82: 4 | H82: محرم | I82: 1437
A83: م | B83: اسم العميل | C83: الفرع | D83: العنوان | E83: مبلغ1 | F83: مبلغ2 | G83: مبلغ3 | H83: مبلغ4 | I83: مبلغ5 | J83: مبلغ6 | K83: مبلغ7 | L83: اجمالي المبالغ
A84: 1 | B84: عميل1 | E84: 15 | L84: =SUM(E84:K84) -> 15
A85: 2 | B85: عميل 2 | L85: =SUM(E85:K85) -> 0
A86: 3 | B86: عميل3 | E86: 20 | H86: 60 | L86: 80
A87: 4 | B87: عميل4 | L87: 0
A88: 5 | B88: عميل5 | E88: 30 | I88: 33 | K88: 500 | L88: 563
A89: 6 | B89: عميل6 | L89: 0
A90: 7 | B90: عميل7 | E90: 40 | F90: 10 | G90: 50 | L90: 100
A91: 8 | B91: عميل8 | J91: 400 | L91: 400
A92: 9 | B92: عميل9 | L92: 0
A93: 10 | B93: عميل10 | F93: 99 | L93: 99
A94: 11 | B94: عميل11 | G94: 88 | H94: 77 | L94: 165
A95: 12 | B95: عميل12 | L95: 0
A96: 13 | B96: عميل13 | H96: 70 | L96: 70
A97: 14 | B97: عميل14 | L97: 0
A98: 15 | B98: عميل15 | L98: 0
A99: 16 | B99: عميل16 | E99: 90 | H99: 125 | L99: 215
A100: 17 | B100: عميل17 | H100: 111 | L100: 111
A101: 18 | B101: عميل18 | L101: 0
A102: 19 | B102: عميل19 | L102: 0
A103: 20 | B103: عميل20 | L103: 0
A104: 21 | B104: عميل21 | L104: 0
A105: 22 | B105: عميل22 | L105: 0
A106: الإجمالي النقدي | E106: =SUM(E84:E105) -> 195 | F106: =SUM(F84:F105) -> 109 | G106: =SUM(G84:G105) -> 138 | H106: =SUM(H84:H105) -> 443 | I106: =SUM(I84:I105) -> 33 | J106: =SUM(J84:J105) -> 400 | K106: =SUM(K84:K105) -> 500 | L106: =SUM(L84:L105) -> 1818
A107: الشيكات | G107: 700 | H107: 0 | L107: =SUM(E107:K107) -> 700
A109: اليوم الخامس | F109: السبت | G109: 5 | H109: محرم | I109: 1437
A110: م | B110: اسم العميل | C110: الفرع | D110: العنوان | E110: مبلغ1 | F110: مبلغ2 | G110: مبلغ3 | H110: مبلغ4 | I110: مبلغ5 | J110: مبلغ6 | K110: مبلغ7 | L110: اجمالي المبالغ
A111: 1 | B111: عميل1 | E111: 15 | L111: =SUM(E111:K111) -> 15
A112: 2 | B112: عميل 2 | L112: =SUM(E112:K112) -> 0
A113: 3 | B113: عميل3 | E113: 20 | H113: 60 | L113: 80
A114: 4 | B114: عميل4 | L114: 0
A115: 5 | B115: عميل5 | E115: 30 | I115: 33 | K115: 500 | L115: 563
A116: 6 | B116: عميل6 | L116: 0
A117: 7 | B117: عميل7 | E117: 40 | F117: 10 | G117: 50 | L117: 100
A118: 8 | B118: عميل8 | J118: 400 | L118: 400
A119: 9 | B119: عميل9 | L119: 0
A120: 10 | B120: عميل10 | F120: 99 | L120: 99
A121: 11 | B121: عميل11 | G121: 88 | H121: 77 | L121: 165
A122: 12 | B122: عميل12 | L122: 0
A123: 13 | B123: عميل13 | H123: 70 | L123: 70
A124: 14 | B124: عميل14 | L124: 0
A125: 15 | B125: عميل15 | L125: 0
A126: 16 | B126: عميل16 | E126: 90 | H126: 125 | L126: 215
A127: 17 | B127: عميل17 | H127: 111 | L127: 111
A128: 18 | B128: عميل18 | L128: 0
A129: 19 | B129: عميل19 | L129: 0
A130: 20 | B130: عميل20 | L130: 0
A131: 21 | B131: عميل21 | L131: 0
A132: 22 | B132: عميل22 | L132: 0
A133: الإجمالي النقدي | E133: =SUM(E111:E132) -> 195 | F133: =SUM(F111:F132) -> 109 | G133: =SUM(G111:G132) -> 138 | H133: =SUM(H111:H132) -> 443 | I133: =SUM(I111:I132) -> 33 | J133: =SUM(J111:J132) -> 400 | K133: =SUM(K111:K132) -> 500 | L133: =SUM(L111:L132) -> 1818
A134: الشيكات | E134: 900 | H134: 0 | L134: =SUM(E134:K134) -> 900
